fUST/lending_fUST_20250203
["ID","MTS","AMOUNT","RATE_DAILY","PERIOD"]
[351386368,1738549856383,-500.0,0.00016849,2]
[351386370,1738549856393,-502.47064056,0.00016849,2]
[351386371,1738549856404,-500.0,0.00016849,2]
[351386372,1738549856414,-3840.19,0.00016849,2]
[351386373,1738549856425,-500.0,0.00016849,2]
[351386375,1738549856436,-500.0,0.00016849,2]
[351386376,1738549856447,-553.64212849,0.00016849,2]
[351386377,1738549856463,-500.0,0.00016849,2]
[351386378,1738549856474,-492.90446542,0.00016849,2]
[351386380,1738549856484,-1000.0,0.00016849,7]
[351386381,1738549856496,-500.0,0.00016849,2]
[351386382,1738549856506,-500.0,0.00016849,2]
[351386383,1738549856517,-500.0,0.00016849,2]
[351386385,1738549856527,-500.0,0.00016849,2]
[351386386,1738549856538,-500.0,0.00016849,2]
[351386387,1738549856548,-936.36,0.00016849,2]
[351386389,1738549856558,-691.04,0.00016849,2]
[351386390,1738549856569,-884.75,0.00016849,2]
[351386391,1738549856579,-500.0,0.00016849,2]
[351386392,1738549856590,-500.0,0.00016849,2]
[351386394,1738549856600,-500.0,0.00016849,2]
[351386395,1738549856614,-1569.05,0.00016849,2]
[351386396,1738549856625,-1736.24,0.00016849,2]
[351386397,1738549856635,-500.0,0.00016849,2]
[351386399,1738549856645,-500.0,0.00016849,2]
[351386400,1738549856655,-1251.53,0.00016849,2]
[351386401,1738549856666,-500.0,0.00016849,2]
[351386402,1738549856676,-583.34,0.00016849,2]
[351386404,1738549856686,-868.21,0.00016849,2]
[351386405,1738549856697,-500.0,0.00016849,2]
[351386406,1738549856713,-500.0,0.00016849,2]
[351386407,1738549856723,-500.0,0.00016849,2]
[351386409,1738549856734,-517.63919065,0.00016849,2]
[351386410,1738549856744,-500.0,0.00016849,2]
[351386411,1738549856755,-500.0,0.00016849,2]
[351386412,1738549856767,-500.0,0.00016849,2]
[351386414,1738549856778,-500.0,0.00016849,2]
[351386415,1738549856789,-500.0,0.00016849,2]
[351386416,1738549856799,-500.0,0.00016849,2]
[351386418,1738549856810,-500.0,0.00016849,2]
[351386419,1738549856820,-500.0,0.00016849,2]
[351386420,1738549856831,-500.0,0.00016849,2]
[351386421,1738549856842,-500.0,0.00016849,2]
[351386423,1738549856851,-500.0,0.00016849,2]
[351386424,1738549856862,-7171.72,0.00016849,2]
[351386425,1738549856872,-500.0,0.00016849,2]
[351386426,1738549856882,-207.44095153,0.000169,2]
[351386428,1738549856892,-207.44095153,0.00016959,2]
[351386429,1738549856905,-500.0,0.00016986,2]
[351386430,1738549856915,-500.0,0.00016986,2]
[351386431,1738549856925,-500.0,0.00016986,2]
[351386433,1738549856935,-423.70748577,0.00016986,2]
[351386434,1738549856946,-500.0,0.00016986,2]
[351386435,1738549856961,-500.0,0.00016986,2]
[351386436,1738549856972,-500.0,0.00016986,2]
[351386438,1738549856982,-500.0,0.00016986,2]
[351386439,1738549856995,-500.0,0.00016986,2]
[351386440,1738549857005,-304.70471157,0.00016986,2]
[351386441,1738549857015,-500.0,0.00016986,2]
[351386442,1738549857025,-500.0,0.00016986,2]
[351386444,1738549857035,-510.60555949,0.00016986,2]
[351386445,1738549857046,-500.0,0.00016986,2]
[351386446,1738549857056,-500.0,0.00016986,2]
[351386448,1738549857066,-500.0,0.00016986,2]
[351386449,1738549857076,-500.0,0.00016986,2]
[351386450,1738549857086,-521.635222,0.00016986,2]
[351386451,1738549857097,-500.0,0.00016986,2]
[351386453,1738549857108,-500.0,0.00016986,2]
[351386454,1738549857183,-500.0,0.00016986,2]
[351386455,1738549857194,-500.0,0.00016986,2]
[351386456,1738549857206,-504.14579301,0.00016986,2]
[351386457,1738549857216,-500.0,0.00016986,2]
[351386458,1738549857225,-500.0,0.00016986,2]
[351386459,1738549857235,-500.0,0.00016986,2]
[351386460,1738549857244,-500.0,0.00016986,2]
[351386461,1738549857254,-500.0,0.00016986,2]
[351386462,1738549857264,-505.62695822,0.00016986,2]
[351386463,1738549857275,-500.0,0.00016986,2]
[351386464,1738549857284,-500.0,0.00016986,2]
[351386465,1738549857294,-549.13,0.00016986,2]
[351386466,1738549857303,-500.0,0.00016986,2]
[351386467,1738549857313,-468.57933467,0.00016986,2]
[351386468,1738549857323,-500.0,0.00016986,2]
[351386469,1738549857334,-500.0,0.00016986,2]
[351386470,1738549857344,-500.0,0.00016986,2]
[351386471,1738549857353,-509.35509432,0.00016986,2]
[351386472,1738549857363,-500.0,0.00016986,2]
[351386473,1738549857372,-500.0,0.00016986,2]
[351386474,1738549857382,-500.0,0.00016986,2]
[351386476,1738549857391,-274.20254529,0.00016986,2]
[351386477,1738549857402,-500.0,0.00016986,2]
[351386478,1738549857412,-500.0,0.00016986,2]
[351386479,1738549857423,-500.0,0.00016986,2]
[351386481,1738549857433,-500.0,0.00016986,2]
[351386482,1738549857443,-500.0,0.00016986,2]
[351386483,1738549857455,-656.58,0.00016986,2]
[351386485,1738549857464,-500.0,0.00016986,2]
[351386486,1738549857474,-500.0,0.00016986,2]
[351386487,1738549857484,-500.0,0.00016986,2]
[351386488,1738549857494,-500.0,0.00016986,2]
[351386490,1738549857504,-500.0,0.00016986,2]
[351386491,1738549857514,-567.58,0.00016986,2]
[351386492,1738549857524,-500.0,0.00016986,2]
[351386493,1738549857534,-500.0,0.00016986,2]
[351386495,1738549857544,-514.79,0.00016986,2]
[351386496,1738549857554,-500.0,0.00016986,2]
[351386497,1738549857564,-500.0,0.00016986,2]
[351386498,1738549857574,-823.63,0.00016986,2]
[351386500,1738549857586,-500.0,0.00016986,2]
[351386501,1738549857596,-1310.86,0.00016986,2]
[351386502,1738549857608,-500.0,0.00016986,2]
[351386503,1738549857619,-503.19725641,0.00016986,2]
[351386505,1738549857630,-500.0,0.00016986,2]
[351386506,1738549857640,-2914.67,0.00016986,2]
[351386507,1738549857651,-5771.54,0.00016986,2]
[351386508,1738549857662,-500.0,0.00016986,2]
[351386510,1738549857671,-165.28752267,0.00016986,2]
[351386511,1738549857683,-616.14,0.00016986,2]
[351386512,1738549857702,-500.0,0.00016986,2]
[351386513,1738549857723,-500.0,0.00016986,2]
[351386515,1738549857739,-500.0,0.00016986,2]
[351386516,1738549857761,-500.0,0.00016986,2]
[351386518,1738549857780,-500.0,0.00016986,2]
[351386519,1738549857800,-616.01,0.00016986,2]
[351386521,1738549857820,-620.42,0.00016986,2]
[351386522,1738549857837,-500.0,0.00016986,2]
[351386523,1738549857855,-1688.07,0.00016986,2]
[351386525,1738549857876,-9757.83,0.00016986,2]
[351386526,1738549857895,-500.0,0.00016986,2]
[351386528,1738549857909,-1000.0,0.00016986,2]
[351386529,1738549857931,-790.34,0.00016986,2]
[351386531,1738549857947,-872.06,0.00016986,2]
[351386532,1738549857969,-500.0,0.00016986,2]
[351386533,1738549857985,-469.40158388,0.00016986,2]
[351386535,1738549858004,-500.0,0.00016986,2]
[351386536,1738549858021,-550.86,0.00016986,2]
[351386537,1738549858037,-519.88467087,0.00016986,2]
[351386539,1738549858053,-734.97,0.00016986,2]
[351386540,1738549858070,-1793.15,0.00016986,2]
[351386542,1738549858086,-500.0,0.00016986,2]
[351386543,1738549858102,-500.0,0.00016986,2]
[351386544,1738549858116,-500.0,0.00016986,2]
[351386546,1738549858132,-500.0,0.00016986,2]
[351386547,1738549858148,-728.13,0.00016986,2]
[351386549,1738549858165,-2228.5,0.00016986,2]
[351386550,1738549858182,-500.0,0.00016986,2]
[351386551,1738549858199,-500.0,0.00016986,2]
[351386553,1738549858225,-500.0,0.00016986,2]
[351386554,1738549858244,-500.0,0.00016986,2]
[351386556,1738549858261,-1489.97,0.00016986,2]
[351386557,1738549858277,-500.0,0.00016986,2]
[351386558,1738549858294,-3840.19,0.00016986,2]
[351386560,1738549858311,-500.0,0.00016986,2]
[351386561,1738549858329,-500.0,0.00016986,2]
[351386563,1738549858347,-622.85405026,0.00016986,2]
[351386564,1738549858364,-506.66499295,0.00016986,2]
[351386566,1738549858381,-500.0,0.00016986,2]
[351386567,1738549858397,-500.0,0.00016986,2]
[351386568,1738549858413,-500.0,0.00016986,2]
[351386570,1738549858430,-936.36,0.00016986,2]
[351386571,1738549858445,-691.04,0.00016986,2]
[351386573,1738549858468,-884.75,0.00016986,2]
[351386574,1738549858485,-500.0,0.00016986,2]
[351386575,1738549858501,-500.0,0.00016986,2]
[351386577,1738549858518,-500.0,0.00016986,2]
[351386578,1738549858536,-1569.05,0.00016986,2]
[351386582,1738549858648,-1736.24,0.00016986,2]
[351386583,1738549858659,-500.0,0.00016986,2]
[351386584,1738549858669,-500.0,0.00016986,2]
[351386585,1738549858680,-1251.53,0.00016986,2]
[351386587,1738549858691,-583.34,0.00016986,2]
[351386588,1738549858702,-868.21,0.00016986,2]
[351386589,1738549858720,-500.0,0.00016986,2]
[351386591,1738549858730,-500.0,0.00016986,2]
[351386592,1738549858741,-500.0,0.00016986,2]
[351386593,1738549858752,-500.0,0.00016986,2]
[351386594,1738549858763,-500.0,0.00016986,2]
[351386596,1738549858773,-442.3027801,0.00016986,2]
[351386597,1738549858784,-500.0,0.00016986,2]
[351386598,1738549858794,-500.0,0.00016986,2]
[351386599,1738549858805,-500.0,0.00016986,2]
[351386601,1738549858815,-500.0,0.00016986,2]
[351386602,1738549858825,-606.03779245,0.00016986,2]
[351386603,1738549858835,-500.0,0.00016986,2]
[351386604,1738549858845,-7171.72,0.00016986,2]
[351386606,1738549858855,-500.0,0.00016986,2]
[351386607,1738549858866,-15615.15979124,0.00017,2]
[351386608,1738549858876,-207.44095153,0.00017018,2]
[351386610,1738549858888,-163.77902259,0.00017069,2]
[351386611,1738549858898,-207.44095153,0.00017076,2]
[351386612,1738549858910,-160.0,0.00017094,3]
[351386613,1738549858921,-151.0,0.000171,2]
[351386615,1738549858931,-174.063,0.000171,2]
[351386616,1738549858942,-500.0,0.00017121,2]
[351386617,1738549858952,-1000.0,0.00017121,2]
[351386619,1738549858968,-500.0,0.00017123,2]
[351386620,1738549858978,-512.22405165,0.00017123,2]
[351386621,1738549858989,-527.39148343,0.00017123,2]
[351386622,1738549858999,-511.33402051,0.00017123,2]
[351386624,1738549859009,-500.0,0.00017123,2]
[351386625,1738549859019,-505.74492828,0.00017123,2]
[351386626,1738549859028,-500.0,0.00017123,2]
[351386627,1738549859039,-500.0,0.00017123,2]
[351386629,1738549859049,-500.0,0.00017123,2]
[351386630,1738549859058,-500.0,0.00017123,2]
[351386631,1738549859070,-288.16068165,0.00017123,2]
[351386633,1738549859081,-500.0,0.00017123,2]
[351386634,1738549859092,-500.0,0.00017123,2]
[351386635,1738549859102,-500.0,0.00017123,2]
[351386636,1738549859112,-500.0,0.00017123,2]
[351386638,1738549859122,-500.0,0.00017123,2]
[351386639,1738549859132,-500.0,0.00017123,2]
[351386640,1738549859142,-447.36667524,0.00017123,2]
[351386642,1738549859155,-500.0,0.00017123,2]
[351386643,1738549859165,-549.13,0.00017123,2]
[351386644,1738549859175,-500.0,0.00017123,2]
[351386645,1738549859186,-500.0,0.00017123,2]
[351386647,1738549859197,-500.0,0.00017123,2]
[351386648,1738549859212,-506.00293791,0.00017123,2]
[351386649,1738549859223,-500.0,0.00017123,2]
[351386650,1738549859233,-500.0,0.00017123,2]
[351386652,1738549859243,-500.0,0.00017123,2]
[351386653,1738549859253,-500.0,0.00017123,2]
[351386654,1738549859264,-656.58,0.00017123,2]
[351386656,1738549859274,-512.84468264,0.00017123,2]
[351386657,1738549859283,-500.0,0.00017123,2]
[351386658,1738549859294,-506.67360251,0.00017123,2]
[351386659,1738549859304,-500.0,0.00017123,2]
[351386661,1738549859315,-500.0,0.00017123,2]
[351386662,1738549859326,-567.58,0.00017123,2]
[351386663,1738549859336,-500.0,0.00017123,2]
[351386664,1738549859347,-514.79,0.00017123,2]
[351386666,1738549859356,-500.0,0.00017123,2]
[351386667,1738549859369,-823.63,0.00017123,2]
[351386668,1738549859380,-500.0,0.00017123,2]
[351386670,1738549859390,-1310.86,0.00017123,2]
[351386671,1738549859400,-500.0,0.00017123,2]
[351386672,1738549859410,-2914.67,0.00017123,2]
[351386673,1738549859421,-5771.54,0.00017123,2]
[351386674,1738549859431,-500.0,0.00017123,2]
[351386675,1738549859441,-616.14,0.00017123,2]
[351386676,1738549859452,-500.0,0.00017123,2]
[351386677,1738549859466,-500.0,0.00017123,2]
[351386678,1738549859476,-500.0,0.00017123,2]
[351386679,1738549859487,-500.0,0.00017123,2]
[351386680,1738549859497,-620.42,0.00017123,2]
[351386681,1738549859507,-500.0,0.00017123,2]
[351386682,1738549859518,-1688.07,0.00017123,2]
[351386683,1738549859528,-64.01353858,0.00017123,2]
[351386687,1738549859742,-899.3065487,0.00017123,2]
[351386688,1738549859754,-430.245964,0.00017123,2]
[351386696,1738549859994,-500.0,0.00016438,2]
[351386697,1738549860005,-748.2,0.00017123,2]
[351386698,1738549860019,-7616.06394872,0.00017123,2]
[351386699,1738549860029,-500.0,0.00017123,2]
[351386701,1738549860040,-1000.0,0.00017123,2]
[351386702,1738549860050,-790.34,0.00017123,2]
[351386703,1738549860061,-872.06,0.00017123,2]
[351386704,1738549860072,-500.0,0.00017123,2]
[351386706,1738549860083,-500.0,0.00017123,2]
[351386707,1738549860093,-550.86,0.00017123,2]
[351386708,1738549860103,-734.97,0.00017123,2]
[351386710,1738549860113,-1793.15,0.00017123,2]
[351386711,1738549860122,-500.0,0.00017123,2]
[351386712,1738549860132,-198.94324355,0.00017123,2]
[351386713,1738549860141,-500.0,0.00017123,2]
[351386715,1738549860150,-728.13,0.00017123,2]
[351386716,1738549860159,-2228.5,0.00017123,2]
[351386717,1738549860168,-500.0,0.00017123,2]
[351386718,1738549860177,-500.0,0.00017123,2]
[351386720,1738549860186,-500.0,0.00017123,2]
[351386721,1738549860195,-1489.97,0.00017123,2]
[351386722,1738549860208,-500.0,0.00017123,2]
[351386723,1738549860219,-3840.19,0.00017123,2]
[351386725,1738549860228,-522.53756269,0.00017123,2]
[351386726,1738549860238,-285.61534595,0.00017123,2]
[351386727,1738549860249,-500.0,0.00017123,2]
[351386728,1738549860259,-500.0,0.00017123,2]
[351386730,1738549860269,-936.36,0.00017123,2]
[351386731,1738549860279,-691.04,0.00017123,2]
[351386732,1738549860290,-500.0,0.00017123,2]
[351386733,1738549860300,-884.75,0.00017123,2]
[351386735,1738549860310,-500.0,0.00017123,2]
[351386736,1738549860320,-1569.05,0.00017123,2]
[351386737,1738549860330,-1736.24,0.00017123,2]
[351386738,1738549860340,-500.0,0.00017123,2]
[351386740,1738549860349,-1251.53,0.00017123,2]
[351386741,1738549860359,-583.34,0.00017123,2]
[351386742,1738549860368,-868.21,0.00017123,2]
[351386743,1738549860378,-500.0,0.00017123,2]
[351386745,1738549860387,-500.0,0.00017123,2]
[351386746,1738549860397,-500.0,0.00017123,2]
[351386747,1738549860407,-500.0,0.00017123,2]
[351386749,1738549860416,-500.0,0.00017123,2]
[351386750,1738549860427,-500.0,0.00017123,2]
[351386751,1738549860436,-500.0,0.00017123,2]
[351386752,1738549860446,-500.0,0.00017123,2]
[351386754,1738549860459,-500.0,0.00017123,2]
[351386755,1738549860470,-7171.72,0.00017123,2]
[351386756,1738549860480,-124.42989909,0.00017135,2]
[351386763,1738549860686,-284.139,0.00016438,2]
[351386764,1738549860698,-215.861,0.00016438,2]
[351386765,1738549860711,-193.41356865,0.00016438,2]
[351386767,1738549860721,-500.0,0.00016438,2]
[351386768,1738549860731,-482.89,0.00016575,2]
[351386769,1738549860741,-83.01105244,0.00017135,2]
[351386771,1738549860750,-207.44095153,0.00017194,2]
[351386772,1738549860760,-5005.37,0.000172,2]
[351386773,1738549860770,-160.0,0.00017245,4]
[351386774,1738549860780,-207.44095153,0.00017253,2]
[351386776,1738549860790,-500.0,0.0001726,2]
[351386777,1738549860799,-500.0,0.0001726,2]
[351386778,1738549860809,-500.0,0.0001726,2]
[351386780,1738549860823,-500.0,0.0001726,2]
[351386781,1738549860833,-500.0,0.0001726,2]
[351386782,1738549860843,-500.0,0.0001726,2]
[351386783,1738549860853,-500.0,0.0001726,2]
[351386785,1738549860863,-500.0,0.0001726,2]
[351386786,1738549860873,-500.0,0.0001726,2]
[351386787,1738549860883,-549.13,0.0001726,2]
[351386788,1738549860893,-500.0,0.0001726,2]
[351386790,1738549860903,-500.0,0.0001726,2]
[351386791,1738549860913,-457.17970821,0.0001726,2]
[351386792,1738549860923,-500.0,0.0001726,2]
[351386794,1738549860934,-500.0,0.0001726,2]
[351386795,1738549860944,-272.82265926,0.0001726,2]
[351386796,1738549860958,-500.0,0.0001726,2]
[351386797,1738549860968,-656.58,0.0001726,2]
[351386799,1738549860978,-500.0,0.0001726,2]
[351386800,1738549860989,-567.58,0.0001726,2]
[351386801,1738549861000,-500.0,0.0001726,2]
[351386802,1738549861010,-514.79,0.0001726,2]
[351386804,1738549861019,-508.7034557,0.0001726,2]
[351386805,1738549861029,-500.0,0.0001726,2]
[351386806,1738549861039,-1310.86,0.0001726,2]
[351386807,1738549861050,-507.40489138,0.0001726,2]
[351386809,1738549861059,-2914.67,0.0001726,2]
[351386810,1738549861070,-5771.54,0.0001726,2]
[351386811,1738549861081,-500.0,0.0001726,2]
[351386815,1738549861156,-616.14,0.0001726,2]
[351386816,1738549861175,-500.0,0.0001726,2]
[351386817,1738549861185,-500.0,0.0001726,2]
[351386818,1738549861195,-620.42,0.0001726,2]
[351386820,1738549861208,-1688.07,0.0001726,2]
[351386821,1738549861218,-9757.83,0.0001726,2]
[351386822,1738549861228,-500.0,0.0001726,2]
[351386823,1738549861238,-1000.0,0.0001726,2]
[351386825,1738549861247,-790.34,0.0001726,2]
[351386826,1738549861257,-795.5117613,0.0001726,2]
[351386827,1738549861271,-76.5482387,0.0001726,2]
[351386829,1738549861281,-500.0,0.0001726,2]
[351386830,1738549861290,-28.14139717,0.0001726,2]
[351386831,1738549861301,-471.85860283,0.0001726,2]
[351386833,1738549861310,-550.86,0.0001726,2]
[351386834,1738549861320,-734.97,0.0001726,2]
[351386835,1738549861330,-1793.15,0.0001726,2]
[351386836,1738549861339,-428.19111075,0.0001726,2]
[351386838,1738549861350,-71.80888925,0.0001726,2]
[351386839,1738549861360,-425.14,0.0001726,2]
[351386840,1738549861369,-728.13,0.0001726,2]
[351386842,1738549861379,-2228.5,0.0001726,2]
[351386843,1738549861389,-500.0,0.0001726,2]
[351386844,1738549861398,-506.58122246,0.0001726,2]
[351386845,1738549861408,-611.18398761,0.0001726,2]
[351386847,1738549861417,-1489.97,0.0001726,2]
[351386848,1738549861427,-500.0,0.0001726,2]
[351386849,1738549861437,-3840.19,0.0001726,2]
[351386851,1738549861447,-500.0,0.0001726,2]
[351386852,1738549861461,-936.36,0.0001726,2]
[351386853,1738549861471,-691.04,0.0001726,2]
[351386854,1738549861481,-500.0,0.0001726,2]
[351386855,1738549861491,-884.75,0.0001726,2]
[351386856,1738549861502,-1569.05,0.0001726,2]
[351386857,1738549861513,-1736.24,0.0001726,2]
[351386858,1738549861523,-508.30988724,0.0001726,2]
[351386859,1738549861534,-1251.53,0.0001726,2]
[351386860,1738549861543,-583.34,0.0001726,2]
[351386861,1738549861553,-868.21,0.0001726,2]
[351386862,1738549861563,-500.0,0.0001726,2]
[351386863,1738549861573,-500.0,0.0001726,2]
[351386864,1738549861584,-500.0,0.0001726,2]
[351386865,1738549861595,-500.0,0.0001726,2]
[351386866,1738549861606,-500.0,0.0001726,2]
[351386867,1738549861616,-500.0,0.0001726,2]
[351386868,1738549861626,-500.0,0.0001726,2]
[351386869,1738549861636,-7171.72,0.0001726,2]
[351386870,1738549861645,-354.4430635,0.0001726,2]
[351386871,1738549861655,-601.2699626,0.00017279,2]
[351386872,1738549861665,-151.0,0.000173,2]
[351386873,1738549861675,-5000.0,0.000173,2]
[351386874,1738549861685,-207.44095153,0.00017312,2]
[351386875,1738549861695,-500.77770864,0.00017313,2]
[351386876,1738549861709,-501.93398295,0.00017321,2]
[351386877,1738549861719,-207.44095153,0.00017371,2]
[351386878,1738549861729,-160.0,0.00017396,5]
[351386880,1738549861743,-2043.0,0.00017396,2]
[351386881,1738549861753,-2300.0,0.00017396,2]
[351386882,1738549861763,-500.0,0.00017397,2]
[351386883,1738549861774,-234.06525871,0.00017397,2]
[351386885,1738549861784,-500.0,0.00017397,2]
[351386886,1738549861794,-241.17742146,0.00017397,2]
[351386887,1738549861804,-500.0,0.00017397,2]
[351386889,1738549861814,-500.0,0.00017397,2]
[351386890,1738549861825,-500.0,0.00017397,2]
[351386891,1738549861835,-287.70444829,0.00017397,2]
[351386892,1738549861848,-212.29555171,0.00017397,2]
[351386894,1738549861858,-500.0,0.00017397,2]
[351386895,1738549861867,-549.13,0.00017397,2]
[351386896,1738549861877,-500.0,0.00017397,2]
[351386897,1738549861887,-500.0,0.00017397,2]
[351386899,1738549861897,-500.0,0.00017397,2]
[351386900,1738549861906,-500.0,0.00017397,2]
[351386901,1738549861916,-656.58,0.00017397,2]
[351386903,1738549861925,-500.0,0.00017397,2]
[351386904,1738549861935,-567.58,0.00017397,2]
[351386905,1738549861945,-482.44062858,0.00017397,2]
[351386906,1738549861960,-514.79,0.00017397,2]
[351386908,1738549861971,-500.0,0.00017397,2]
[351386909,1738549861980,-1310.86,0.00017397,2]
[351386910,1738549861990,-1611.12381971,0.00017397,2]
[351386919,1738549862269,-500.0,0.00016438,2]
[351386922,1738549862278,-500.0,0.00016438,2]
[351386923,1738549862354,-148.56318326,0.00016438,2]
[351386925,1738549862366,-351.43681674,0.00016438,2]
[351386926,1738549862375,-500.0,0.00016438,2]
[351386927,1738549862385,-500.0,0.00016575,2]
[351386928,1738549862394,-500.0,0.00016575,2]
[351386930,1738549862404,-500.0,0.00016575,2]
[351386931,1738549862414,-9.52318326,0.00017397,2]
[351386932,1738549862426,-559.52727454,0.00017397,2]
[351387439,1738549913465,153.0,0.00014204,2]
[351387466,1738549918086,153.0,0.00014204,2]
[351387467,1738549918315,153.0,0.00014204,2]
[351387469,1738549918533,153.0,0.00014204,2]
[351387470,1738549918759,153.0,0.00014204,2]
[351387472,1738549919009,153.0,0.00014204,2]
[351387474,1738549919253,153.0,0.00014204,2]
[351387477,1738549919487,153.0,0.00014204,2]
[351387493,1738549924687,153.0,0.00014204,2]
[351387496,1738549925632,153.0,0.00014204,2]
[351387497,1738549926030,153.0,0.00014204,2]
[351387499,1738549926260,153.0,0.00014204,2]
[351387568,1738549969908,153.0,0.000142,2]
[351387569,1738549970121,153.0,0.000142,2]
[351387570,1738549970334,153.0,0.000142,2]
[351387571,1738549970527,153.0,0.000142,2]
[351387573,1738549970855,153.0,0.000142,2]
[351387575,1738549971070,153.0,0.000142,2]
[351387576,1738549971277,153.0,0.000142,2]
[351387577,1738549971506,153.0,0.000142,2]
[351387578,1738549971720,153.0,0.000142,2]
[351387579,1738549971918,153.0,0.000142,2]
[351387580,1738549972140,153.0,0.000142,2]
[351387582,1738549972355,153.0,0.000142,2]
[351387583,1738549972708,153.0,0.000142,2]
[351387584,1738549972916,153.0,0.000142,2]
[351387585,1738549973132,153.0,0.000142,2]
[351387586,1738549973369,153.0,0.000142,2]
[351387588,1738549973599,153.0,0.000142,2]
[351387591,1738549973825,153.0,0.000142,2]
[351387592,1738549974054,153.0,0.000142,2]
[351387594,1738549974289,153.0,0.000142,2]
[351387595,1738549974500,153.0,0.000142,2]
[351387596,1738549974740,153.0,0.000142,2]
[351387597,1738549974973,153.0,0.000142,2]
[351387600,1738549975950,153.0,0.000142,2]
[351387602,1738549976028,153.0,0.000142,2]
[351387604,1738549976241,153.0,0.000142,2]
[351387605,1738549976558,153.0,0.000142,2]
[351387606,1738549976767,153.0,0.000142,2]
[351387608,1738549976978,153.0,0.000142,2]
[351387609,1738549977200,153.0,0.000142,2]
[351387611,1738549977418,153.0,0.000142,2]
[351387612,1738549977630,153.0,0.000142,2]
[351387614,1738549977849,153.0,0.000142,2]
[351387615,1738549978079,153.0,0.000142,2]
[351387616,1738549978334,153.0,0.000142,2]
[351387617,1738549978570,153.0,0.000142,2]
[351387696,1738550030501,153.0,0.00014195,2]
[351387788,1738550086758,153.0,0.00014191,2]
[351387881,1738550149701,153.0,0.00014186,2]
[351387952,1738550197784,215.13213,0.00014679,2]
[351388030,1738550244491,211.00503,0.00013973,2]
[351388364,1738550509395,206.0,0.00014159,2]
[351388365,1738550509620,206.0,0.00014159,2]
[351388366,1738550509830,206.0,0.00014159,2]
[351388367,1738550510040,206.0,0.00014159,2]
[351388368,1738550510275,206.0,0.00014159,2]
[351388369,1738550510514,206.0,0.00014159,2]
[351388370,1738550510724,206.0,0.00014159,2]
[351388371,1738550510947,206.0,0.00014159,2]
[351388372,1738550511167,206.0,0.00014159,2]
[351388373,1738550511401,206.0,0.00014159,2]
[351388375,1738550511616,206.0,0.00014159,2]
[351388377,1738550512407,206.0,0.00014159,2]
[351388387,1738550518874,153.0,0.00014159,2]
[351388388,1738550519237,153.0,0.00014159,2]
[351388389,1738550519329,153.0,0.00014159,2]
[351388390,1738550519539,153.0,0.00014159,2]
[351388391,1738550519751,153.0,0.00014159,2]